Cogmind - Beta 9.2 @@@ ROGUE MODE // 2019.12.05 @ 10:09:33 Player: Enzo Result: Self-destructed Performance ------------- Evolutions (1) 500 Regions Visited (3) 600 Robots Destroyed (34) 170 Value Destroyed (502) 502 Prototype IDs (4) 80 Alien Tech Used (0) 0 Bonus (0) 0 TOTAL SCORE: 1852 Bonus ------- None Cogmind --------- Core Integrity 281/400 Matter 300/300 Energy 160/160 System Corruption 3% Temperature Cool (0) Movement Core (400) Ox7 Location -9/Materials Parts ------- > --- POWER (1) -------- Light Nuclear Core > --- PROPULSION (2) --- (None) > --- UTILITY (4) ------ Heat Sink Large Storage Unit Structural Scanner > --- WEAPON (2) ------- (None) > --- INVENTORY (10) --- Sensor Array Terrain Scan Processor Datajack Peak State ------------ > --- POWER ------------ Light Ion Engine > --- PROPULSION ------- Wheel Wheel > --- UTILITY ---------- Heat Sink Improved Terrain Scanner > --- WEAPON ----------- EM Pulse Gun Small Laser > --- INVENTORY -------- Seismic Analyzer Mining Laser [Rating: 8] Favorites ----------- Power Light Ion Engine Engine Light Ion Engine Power Core Light Nuclear Core Propulsion Wheel Wheel Wheel Utility Large Storage Unit Device Sensor Array Storage Large Storage Unit Weapon EM Pulse Gun Energy Gun EM Pulse Gun Ballistic Gun Light Assault Rifle Ballistic Cannon Light Cannon Launcher Grenade Launcher Special Weapon Mining Laser Build | -11 -10 -10 -9 ------- Run | Scr Mat Min Mat Slots Evolved 2 | . . . 2 Power . | . . . . Propulsion . | . . . . Utility 2 | . . . 2 Weapon . | . . . . Parts Attached 33 | 7 16 3 7 Power 4 | 1 2 . 1 Engine 3 | 1 2 . . Core 1 | . . . 1 Reactor . | . . . . Propulsion 9 | 3 4 1 1 Treads . | . . . . Leg . | . . . . Wheel 9 | 3 4 1 1 Hover . | . . . . Flight . | . . . . Utility 8 | 1 4 . 3 Device 6 | 1 2 . 3 Storage 2 | . 2 . . Processor . | . . . . Hackware . | . . . . Protection . | . . . . Artifact . | . . . . Weapon 12 | 2 6 2 2 Energy Gun 6 | 2 2 . 2 Energy Cannon . | . . . . Ballistic Gun 1 | . 1 . . Ballistic Cannon 2 | . 1 1 . Launcher 2 | . 2 . . Special Weapon 1 | . . 1 . Impact Weapon . | . . . . Slashing Weapon . | . . . . Piercing Weapon . | . . . . Special Melee Weapon . | . . . . Unidentified Prototypes . | . . . . Parts Lost 16 | . 4 6 6 Power 1 | . . 1 . Propulsion 4 | . . 2 2 Utility 3 | . 1 . 2 Weapon 8 | . 3 3 2 Highest Loss Streak 6 | . 3 6 4 Average Slot Usage (%) 84 | . 95 92 58 Engine 9 | . 14 10 . Core 1 | . . . 4 Wheel 23 | . 28 27 13 Device 17 | . 13 14 24 Storage 11 | . 11 14 11 Energy Gun 12 | . 16 12 4 Ballistic Gun 1 | . 3 . . Ballistic Cannon 1 | . 1 3 . Launcher 4 | . 6 10 . Naked Turns . | . . . . Heaviest Build 25 | 7 25 25 23 Greatest Support 26 | 26 20 20 20 Greatest Overweight (x) 7 | . 1 1 7 Average Overweight (x) . | . . . 1 Largest Inventory Capacity 10 | 4 10 10 10 Average Capacity 7 | 4 5 10 10 Most Carried 8 | 2 6 8 5 Average Carried 4 | 1 4 7 3 Final Capacity 10 | 4 10 10 10 Final Carried 6 | 2 6 6 3 Class Distribution -------------------- 56% | Mutant 43% | Scavenger-Mutant Dominant Class ---------------- Scavenger-Mutant | -10/Materials Mutant | -10/Mines Mutant | -9/Materials Resources | -11 -10 -10 -9 ----------- Run | Scr Mat Min Mat Matter Collected 568 | 270 210 10 78 Remotely . | . . . . Salvage Created 1031 | 123 675 79 154 Parts 79 | 10 49 13 7 Haulers Intercepted 2 | . 2 . . Recyclers Shooed 2 | . 2 . . Parts Field Recycled . | . . . . Retrieved Matter . | . . . . Parts Self-Destructed . | . . . . Prevented . | . . . . Kills | -11 -10 -10 -9 ------- Run | Scr Mat Min Mat Combat Hostiles Destroyed 15 | . 9 3 3 Melee 2 | . . . 2 Guns 5 | . 4 1 . AOE 8 | . 5 2 1 Classes Destroyed 9 | 2 6 1 . Worker 3 | . 2 1 . Builder 5 | . 3 2 . Tunneler 4 | 2 . 2 . Hauler 2 | . 2 . . Recycler 3 | 1 2 . . Watcher 2 | . 2 . . Swarmer 3 | . 3 . . Grunt 9 | . 6 . 3 Assembled 3 | . . 3 . Best Kill Streak 7 | 3 4 7 1 Combat Bots Only 3 | . 3 3 1 Max Kills in Single Turn 3 | 1 2 3 1 Gunslinging . | . . . . Exploded 2 | . 2 1 1 Melee 1 | . . . 1 Uniques/NPCs Destroyed . | . . . . Combat | -11 -10 -10 -9 -------- Run | Scr Mat Min Mat Damage Taken 1019 | . 273 434 312 Core 212 | . . 93 119 Absorbed by Shields . | . . . . Core Remaining (%) 81 | 100 . 62 . Volleys Fired 78 | 6 40 17 15 Largest 2 | 2 2 2 1 Hottest 100 | 80 80 100 40 Shots Fired 115 | 12 70 18 15 Gun 100 | 12 62 11 15 Cannon 4 | . 3 1 . Launcher 9 | . 5 4 . Special 2 | . . 2 . Kinetic 7 | . 6 1 . Thermal 46 | 6 32 2 6 Explosive 9 | . 5 4 . Electromagnetic 53 | 6 27 11 9 Robot Hit Streak 6 | 4 6 3 5 Robot Miss Streak 5 | 1 5 3 4 Penetration Max . | . . . . Secondary Targets . | . . . . Shots Hit Robots 64 | 7 39 9 9 Core Hits 56 | 4 29 14 9 Critical Hits . | . . . . Critical Kills . | . . . . Critical Parts Destroyed . | . . . . Melee Attacks . | . . . . Impact . | . . . . Slashing . | . . . . Piercing . | . . . . Sneak Attacks . | . . . . Combat Hostiles . | . . . . Follow-up Attacks . | . . . . Damage Inflicted 1880 | 73 927 678 202 Guns 718 | 73 446 87 112 Cannons 16 | . 16 . . Explosions 1089 | . 465 591 33 Melee . | . . . . Ramming 57 | . . . 57 Kinetic 42 | . 42 . . Thermal 376 | 11 253 47 65 Explosive 908 | . 364 544 . Electromagnetic 497 | 62 268 87 80 Impact . | . . . . Slashing . | . . . . Piercing . | . . . . Highest Corruption 3 | . . 3 3 Average Corruption 3 | . . 3 3 Corruption Purged . | . . . . Effects 2 | . . 1 1 Message Errors 2 | . . 1 1 Overload Shots . | . . . . Overflow Damage 49 | . 6 43 . Projectiles . | . . . . Explosions 49 | . 6 43 . Melee . | . . . . Knockbacks . | . . . . Impact . | . . . . Kinetic . | . . . . Secondary . | . . . . Self-Inflicted Damage 163 | . 79 41 43 Shots 5 | . 2 2 1 Rammed 9 | . . . 9 Targets Rammed 9 | . . . 9 Kicked . | . . . . Crushed . | . . . . Highest Temperature 84 | 54 84 20 12 Average Temperature 28 | 23 30 20 6 Received Heat Transfer 309 | . 105 60 144 Siege Activations . | . . . . Robots Corrupted 1 | . 1 . . Combat Hostiles . | . . . . Parts Fried 1 | . 1 . . Impact Corruptions . | . . . . Robots Melted . | . . . . Combat Hostiles . | . . . . Parts Melted . | . . . . Heat Transferred 700 | 25 500 50 125 Parts Sabotaged . | . . . . Parts Stolen . | . . . . Parts Stripped . | . . . . Power Chain Reactions 4 | . 2 1 1 Missiles Intercepted . | . . . . Alert | -11 -10 -10 -9 ------- Run | Scr Mat Min Mat Peak Influence 246 | 15 246 103 77 Average Influence 100 | 6 140 84 55 Maximum Alert Level 1 | . 1 . . Low Security (%) 87 | 100 76 100 100 Level 1 12 | . 23 . . Level 2 . | . . . . Level 3 . | . . . . Level 4 . | . . . . Level 5 . | . . . . High Security . | . . . . Max Security . | . . . . Squads Dispatched 3 | . 2 . 1 Investigation 1 | . 1 . . Extermination . | . . . . Reinforcement 2 | . 1 . 1 Assault . | . . . . Garrison . | . . . . Intercept . | . . . . Construction Impeded . | . . . . Haulers Reinforced . | . . . . Stealth | -11 -10 -10 -9 --------- Run | Scr Mat Min Mat Distress Signals 3 | . 2 . 1 Communications Jammed . | . . . . Distress Signals . | . . . . Times Spotted 41 | . 20 13 8 Peak Tracking Total 7 | . 3 7 4 Tactical Retreats 5 | . 2 1 2 Traps | -11 -10 -10 -9 ------- Run | Scr Mat Min Mat Traps Triggered . | . . . . Indirectly . | . . . . Trap Hack Attempts . | . . . . Triggered . | . . . . Disarmed . | . . . . Reprogrammed . | . . . . Reused . | . . . . Traps Extracted . | . . . . Installed . | . . . . Triggered . | . . . . Machines | -11 -10 -10 -9 ---------- Run | Scr Mat Min Mat Machines Disabled 3 | . 3 . . Max in Single Turn 2 | . 2 . . Machines Sabotaged . | . . . . Garrisons Compromised . | . . . . Overloaded Fab Kills . | . . . . Fab Network Shutdowns . | . . . . Hacking | -11 -10 -10 -9 --------- Run | Scr Mat Min Mat Machines Accessed 5 | . 5 . . Terminals 4 | . 4 . . Fabricators . | . . . . Repair Stations . | . . . . Recycling Units 1 | . 1 . . Scanalyzers . | . . . . Garrison Access . | . . . . Total Hacks 14 | . 14 . . Successful 9 | . 9 . . Failed 5 | . 5 . . Catastrophic . | . . . . Database Lockouts . | . . . . Manual 5 | . 5 . . Terminals 11 | . 11 . . Fabricators . | . . . . Repair Stations . | . . . . Recycling Units 3 | . 3 . . Scanalyzers . | . . . . Garrison Access . | . . . . Terminal Hacks 7 | . 7 . . Prototype ID Bank 2 | . 2 . . Emergency Access Points 1 | . 1 . . Alert Level 2 | . 2 . . Maintenance Status 1 | . 1 . . Hauler Manifests 1 | . 1 . . Fabricator Hacks . | . . . . Repair Station Hacks . | . . . . Recycling Unit Hacks 2 | . 2 . . Report Inventory 1 | . 1 . . Retrieve Components 1 | . 1 . . Scanalyzer . | . . . . Garrison Access Hacks . | . . . . Unauthorized Hacks 2 | . 2 . . Terminals . | . . . . Fabricators . | . . . . Repair Stations . | . . . . Recycling Units . | . . . . Scanalyzers . | . . . . Garrison Access . | . . . . Data Cores Recovered . | . . . . Used . | . . . . Hacking Detections 5 | . 5 . . Full Trace Events 1 | . 1 . . Feedback Events . | . . . . Feedback Blocked . | . . . . Robot Schematics Acquired . | . . . . Robots Built . | . . . . Matter . | . . . . Time . | . . . . Total Robot Build Rating . | . . . . Part Schematics Acquired . | . . . . Parts Built . | . . . . Matter . | . . . . Time . | . . . . Total Part Build Rating . | . . . . Parts Repaired . | . . . . Time . | . . . . Parts Recycled . | . . . . Recycled Matter . | . . . . Retrieved Matter . | . . . . Retrieved Components 2 | . 2 . . Parts Scanalyzed . | . . . . Part Schematics Acquired . | . . . . Parts Damaged . | . . . . Bothacking | -11 -10 -10 -9 ------------ Run | Scr Mat Min Mat Used RIF Installer . | . . . . Robots Hacked . | . . . . Non-combat . | . . . . Combat . | . . . . Robot Hacks Applied . | . . . . Relay Couplers Released . | . . . . Robots Rewired . | . . . . Allies Hacked . | . . . . Hacks Repelled . | . . . . Allies | -11 -10 -10 -9 -------- Run | Scr Mat Min Mat Total Allies . | . . . . Largest Group . | . . . . Highest-Rated Group . | . . . . Highest-Rated Ally . | . . . . Total Orders . | . . . . Ally Attacks . | . . . . Total Damage . | . . . . Kills . | . . . . Allies Corrupted . | . . . . Allies Melted . | . . . . Intel | -11 -10 -10 -9 ------- Run | Scr Mat Min Mat Robot Analysis Total . | . . . . Derelict Logs Recovered . | . . . . Drone Launches . | . . . . Drone Recoveries . | . . . . Exploration | -11 -10 -10 -9 ------------- Run | Scr Mat Min Mat Turns Passed 1223 | 94 651 137 341 Spaces Moved 881 | 70 574 97 140 Core 35 | 4 . . 31 Treads . | . . . . Legs . | . . . . Wheels 846 | 66 574 97 109 Hover . | . . . . Flight . | . . . . Fastest Speed 50 | 50 80 80 80 Average Speed 93 | 84 80 89 151 Slowest Speed 400 | 100 90 90 400 Overloaded Moves . | . . . . Propulsion Burnouts . | . . . . Robots Hopped . | . . . . Cave-ins Triggered . | . . . . Exploration Rate (%) 32 | 4 81 34 10 Regions Visited 3 Branch Regions 1 Pre-discovered Areas . | . . . . Known Exits Taken . | . . . . Unknown Exits Taken 3 | 1 1 1 . Scrap Searched 1 | . . 1 . Spaces Dug 2 | . . 2 . Terrain Destroyed 99 | . 61 34 4 Melee . | . . . . Projectile 2 | . . 2 . AOE 97 | . 61 32 4 Actions | -11 -10 -10 -9 --------- Run | Scr Mat Min Mat Total 1153 | 89 693 124 247 Wait 129 | 4 43 6 76 Move 878 | 69 573 96 140 Hop . | . . . . Pick Up 12 | 2 8 2 . Fast Attach 17 | 7 6 . 4 Attach 7 | . 2 2 3 Detach 1 | . 1 . . Swap 9 | . 8 1 . Drop 13 | 1 12 . . Fire 78 | 6 40 17 15 Melee . | . . . . Ram 9 | . . . 9 Kick . | . . . . Crush . | . . . . Escape Stasis . | . . . . Rewire . | . . . . Trap . | . . . . Miscellaneous . | . . . . Route ------- -11/Scrapyard -10/Materials (discovered 2 exits: [*Mat] / [*Min]) -10/Mines -9/Materials History --------- Turn | Location | Event 16 | -11/Scrapyard | Discovered new exit (range 15) 95 | -11/Scrapyard | Entered Materials 441 | -10/Materials | Lost 3 parts (1u2w) 607 | -10/Materials | Build established: Scavenger-Mutant 636 | -10/Materials | Discovered new exit (range 11) 696 | -10/Materials | Discovered new exit (range 9) 746 | -10/Materials | Entered Mines 810 | -10/Mines | Discovered new exit (range 10) 814 | -10/Mines | Assembled infested the area 883 | -10/Mines | Entered Materials 883 | -9/Materials | Evolved 2 slots: Utility x2 913 | -9/Materials | Lost 6 parts (1p2n3w) 1123 | -9/Materials | Lost 4 parts (2n1u1w) 1224 | -9/Materials | Self-destructed Last Messages --------------- 01015_ Acquired 4 matter. 01087_ Sml. Laser destroyed. 01089_ Wheel destroyed. 01092_ Slammed into G-47 Trooper. 01092_ G-47 Trooper destroyed. 01092_ Heat Sink destroyed. 01092_ Wheel destroyed. 01092_ System corrupted by crushing effect (+1). 01092_ System corrupted by crushing effect (+2). 01096_ R-06 Scavenger collects Aluminum Leg. 01098_ Acquired Lgt. Nuclear Core. 01100_ Acquired 5 matter. 01116_ Slammed into R-06 Scavenger. 01167_ K-01 Serf cleans the Neutrino Reactor. 01172_ JB7AK6GS 01198_ O-16 Technician uses terminal to summon reinforcements. 01198_ ALERT: Hostiles spotted, dispatching reinforcements to Terminal M010. 01198_ O-16 Technician locks terminal. Map ----- +----------------------------------------------------+ | ??????????????????????????????? | | ??????????????????????????????? | | ??????????????????????????????? | | ??????????????????????????????? | | ??????????????????????????????? | | ??????????????????????????????? | | ??????????????????????????????? | | ??????????????????????????????? | | ??????????????????????????????? | | ??????????????????????????????? | | ??????????????????????????????? | | ??????????????????????????????? | | ??????????????????????????????? | | ??????????????????????????????? | | ??????????????????????????????? | | ??????????????????????????????? | | ??????????????????????????????? | | ??????????????????????????????? | | ?###########??????????????????? | | ?# ^ #??????????????????? | | ?# % """ #??????????????????? | | ?# R" #??????????????????? | | ?# """ #??????????????????? | | ?# """^ #??????????????????? | | ?# """ #??????????????????? | | ?# """@ ^ #??????????????????? | | ?# #???????###????????? | | ?#####g#Y####### ##???????? | | ?????# ??????? | | ?????# g T ????????? | | ?????# ??????? | | ????####+####### ##???????? | | ????# #?????###????????? | | ????#""" #????????????????? | | ????#""" #????????????????? | | ????#""" #????????????????? | | ????# #????????????????? | | ????#""" #????????????????? | | ????#""" #????????????????? | | ????#""" #????????????????? | | ????# #????????????????? | | ????###+##+###????????????????? | | ??????# ## #??????????????????? | | ??#####+## #??????????????????? | | ??# #%#??????????????????? | | ??# #%#??????????????????? | | ??# # #######????????????? | | ??# + ##???????????? | | ??# # ###" "#???????????? | | ??# # ###"""##??????????? | +----------------------------------------------------+ Best States ------------- Heat Dissipation 48 Energy Generation 14 Energy Capacity 250 Matter Stores 300 Matter Capacity 300 Sight Range 16 Robot Scan Range 10 Terrain Scan Range 16 Terrain Scan Density 10 Evasion (%) 44 Item Schematics ----------------- None Robot Schematics ------------------ None Fabricated ------------ Nothing Alien Tech Used ----------------- None Achievements -------------- None Challenges ------------ None Game ------ Seed MetafieldLargeShredder Manual? 0 Play Time 00:14:02 Cumulative 14.4 hours Start 2019.12.05 @ 09:57:14 End 2019.12.05 @ 10:09:33 Sessions 1 Manual Loads 0 Difficulty Rogue Special Mode None Game No. 42 Rogue 42 Adventurer 0 Explorer 0 Win Type - Total 0 Types 0/0/0/0/0/0/0 Lore% 35 Gallery% 30 Achievement% 27 Wizard Run 0 Options --------- ASCII 0 Keyboard 0 Movement Numpad Keybinds 0 Fullscreen 2 Font 24/Smallcaps Map View 76x50 Tactical HUD 1 Map Filters NONE Filters NONE Steam 1 RUN: 25d78ef9-3cd3-48a7-a7da-a014bd1fe92f